[Event "Titled Tuesday Blitz August 08 Early 2023"]
[White "Krzyzanowski, Marcin"]
[Black "Budrewicz, Krzysztof"]
[WhiteFideId "1132199"]
[BlackFideId "1127950"]
[WhiteElo "2787"]
[BlackElo "2592"]
[Result "0-1"]
[Round "11"]
[TimeControl "180+1"]
[Date "2023.08.08"]
[WhiteClock "0:00:00"]
[BlackClock "0:00:01"]
[Board "43"]

1. e4 {[%clk 0:03:00]}  e5 {[%clk 0:02:59]} 2. Nf3 {[%clk 0:03:00]}  Nc6 {[%clk 0:02:59]} 3. Bc4 {[%clk 0:02:58]}  Nf6 {[%clk 0:02:57]} 4. d3 {[%clk 0:02:56]}  Be7 {[%clk 0:02:57]} 5. O-O {[%clk 0:02:55]}  O-O {[%clk 0:02:57]} 6. Re1 {[%clk 0:02:56]}  d6 {[%clk 0:02:58]} 7. a4 {[%clk 0:02:55]}  Be6 {[%clk 0:02:55]} 8. a5 {[%clk 0:02:51]}  Bxc4 {[%clk 0:02:52]} 9. dxc4 {[%clk 0:02:50]}  a6 {[%clk 0:02:52]} 10. Nc3 {[%clk 0:02:49]}  Nd7 {[%clk 0:02:48]} 11. Nd5 {[%clk 0:02:42]}  Nc5 {[%clk 0:02:47]} 12. b4 {[%clk 0:02:39]}  Ne6 {[%clk 0:02:47]} 13. Qd3 {[%clk 0:02:25]}  Ncd4 {[%clk 0:02:34]} 14. c3 {[%clk 0:02:02]}  Nxf3+ {[%clk 0:02:31]} 15. Qxf3 {[%clk 0:02:03]}  c6 {[%clk 0:02:30]} 16. Ne3 {[%clk 0:02:01]}  g6 {[%clk 0:02:29]} 17. Bd2 {[%clk 0:01:56]}  Bg5 {[%clk 0:02:18]} 18. Rad1 {[%clk 0:01:55]}  Qe7 {[%clk 0:02:18]} 19. g3 {[%clk 0:01:55]}  Bxe3 {[%clk 0:02:14]} 20. Bxe3 {[%clk 0:01:53]}  f5 {[%clk 0:02:07]} 21. exf5 {[%clk 0:01:47]}  gxf5 {[%clk 0:02:07]} 22. Bc1 {[%clk 0:01:36]}  Rad8 {[%clk 0:02:04]} 23. Qh5 {[%clk 0:01:35]}  f4 {[%clk 0:01:47]} 24. c5 {[%clk 0:01:24]}  Ng7 {[%clk 0:01:38]} 25. Qg4 {[%clk 0:01:17]}  h5 {[%clk 0:01:33]} 26. Qg6 {[%clk 0:01:15]}  Rf6 {[%clk 0:01:30]} 27. Qg5 {[%clk 0:01:12]}  dxc5 {[%clk 0:01:20]} 28. Rxd8+ {[%clk 0:01:05]}  Qxd8 {[%clk 0:01:20]} 29. bxc5 {[%clk 0:01:05]}  Qd5 {[%clk 0:01:06]} 30. Qxe5 {[%clk 0:00:43]}  Qxe5 {[%clk 0:00:56]} 31. Rxe5 {[%clk 0:00:42]}  fxg3 {[%clk 0:00:55]} 32. hxg3 {[%clk 0:00:40]}  Rf5 {[%clk 0:00:53]} 33. Re7 {[%clk 0:00:34]}  Rf7 {[%clk 0:00:50]} 34. Re4 {[%clk 0:00:31]}  Rf5 {[%clk 0:00:41]} 35. Be3 {[%clk 0:00:31]}  Rd5 {[%clk 0:00:37]} 36. Re7 {[%clk 0:00:29]}  Rd1+ {[%clk 0:00:34]} 37. Kg2 {[%clk 0:00:29]}  Rb1 {[%clk 0:00:35]} 38. Re5 {[%clk 0:00:22]}  Kf7 {[%clk 0:00:32]} 39. Bd4 {[%clk 0:00:22]}  Rb5 {[%clk 0:00:25]} 40. Rg5 {[%clk 0:00:18]}  Ne6 {[%clk 0:00:24]} 41. Rxh5 {[%clk 0:00:18]}  Kg6 {[%clk 0:00:18]} 42. Re5 {[%clk 0:00:17]}  Nxd4 {[%clk 0:00:13]} 43. cxd4 {[%clk 0:00:18]}  Rxa5 {[%clk 0:00:13]} 44. f4 {[%clk 0:00:18]}  Ra4 {[%clk 0:00:11]} 45. Re4 {[%clk 0:00:14]}  a5 {[%clk 0:00:10]} 46. Kf3 {[%clk 0:00:12]}  Rb4 {[%clk 0:00:08]} 47. g4 {[%clk 0:00:06]}  a4 {[%clk 0:00:08]} 48. f5+ {[%clk 0:00:05]}  Kf7 {[%clk 0:00:08]} 49. Kf4 {[%clk 0:00:04]}  a3 {[%clk 0:00:09]} 50. g5 {[%clk 0:00:02]}  a2 {[%clk 0:00:09]} 51. g6+ {[%clk 0:00:02]}  Kf8 {[%clk 0:00:04]} 52. f6 {[%clk 0:00:02]}  a1=Q {[%clk 0:00:03]} 53. g7+ {[%clk 0:00:03]}  Kf7 {[%clk 0:00:03]} 54. Re7+ {[%clk 0:00:03]}  Kxf6 {[%clk 0:00:03]} 55. g8=Q {[%clk 0:00:02]}  Qxd4+ {[%clk 0:00:03]} 56. Kg3 {[%clk 0:00:01]}  Qh4+ {[%clk 0:00:02]} 57. Kg2 {[%clk 0:00:02]}  Rg4+ {[%clk 0:00:02]} 58. Kf3 {[%clk 0:00:02]}  Rxg8 {[%clk 0:00:02]} 59. Re6+ {[%clk 0:00:00]}  Kxe6 {[%clk 0:00:01]} 0-1


[Site "https://www.chess.com"]

[Event "Titled Tuesday Blitz August 08 Early 2023"]
[White "Keleberda, Tymur"]
[Black "Mekhitarian, Krikor Sevag"]
[WhiteFideId "14174294"]
[BlackFideId "2107660"]
[WhiteElo "2556"]
[BlackElo "2735"]
[Result "0-1"]
[Round "11"]
[TimeControl "180+1"]
[Date "2023.08.08"]
[WhiteClock "0:01:39"]
[BlackClock "0:01:16"]
[Board "47"]

1. e4 {[%clk 0:03:00]}  e6 {[%clk 0:02:59]} 2. d4 {[%clk 0:03:00]}  d5 {[%clk 0:02:59]} 3. Nc3 {[%clk 0:03:00]}  Nf6 {[%clk 0:02:57]} 4. e5 {[%clk 0:03:00]}  Nfd7 {[%clk 0:02:56]} 5. f4 {[%clk 0:03:01]}  c5 {[%clk 0:02:57]} 6. Nf3 {[%clk 0:03:01]}  Nc6 {[%clk 0:02:56]} 7. Ne2 {[%clk 0:03:01]}  Be7 {[%clk 0:02:51]} 8. c3 {[%clk 0:03:01]}  O-O {[%clk 0:02:51]} 9. g3 {[%clk 0:03:01]}  b5 {[%clk 0:02:51]} 10. a3 {[%clk 0:03:01]}  a5 {[%clk 0:02:52]} 11. Bg2 {[%clk 0:03:00]}  Ba6 {[%clk 0:02:52]} 12. O-O {[%clk 0:02:59]}  b4 {[%clk 0:02:53]} 13. axb4 {[%clk 0:02:59]}  axb4 {[%clk 0:02:52]} 14. f5 {[%clk 0:02:50]}  exf5 {[%clk 0:02:31]} 15. Rf2 {[%clk 0:02:49]}  Bxe2 {[%clk 0:02:27]} 16. Rxa8 {[%clk 0:02:48]}  Bxd1 {[%clk 0:02:28]} 17. Rxd8 {[%clk 0:02:47]}  Rxd8 {[%clk 0:02:28]} 18. Nh4 {[%clk 0:02:34]}  Bxh4 {[%clk 0:02:18]} 19. gxh4 {[%clk 0:02:33]}  bxc3 {[%clk 0:02:18]} 20. Bxd5 {[%clk 0:02:33]}  cxb2 {[%clk 0:02:13]} 21. Bxb2 {[%clk 0:02:31]}  Nxd4 {[%clk 0:02:12]} 22. Bxd4 {[%clk 0:02:29]}  cxd4 {[%clk 0:02:12]} 23. e6 {[%clk 0:02:25]}  Nf6 {[%clk 0:01:48]} 24. exf7+ {[%clk 0:02:22]}  Kf8 {[%clk 0:01:48]} 25. Bc4 {[%clk 0:02:20]}  d3 {[%clk 0:01:39]} 26. Rxf5 {[%clk 0:02:09]}  d2 {[%clk 0:01:38]} 27. Rf4 {[%clk 0:01:53]}  Bc2 {[%clk 0:01:22]} 28. Be2 {[%clk 0:01:53]}  d1=Q+ {[%clk 0:01:19]} 29. Bxd1 {[%clk 0:01:53]}  Rxd1+ {[%clk 0:01:20]} 30. Kg2 {[%clk 0:01:49]}  Kxf7 {[%clk 0:01:21]} 31. Rb4 {[%clk 0:01:44]}  Be4+ {[%clk 0:01:19]} 32. Kf2 {[%clk 0:01:42]}  Rd3 {[%clk 0:01:19]} 33. Ra4 {[%clk 0:01:29]}  Rh3 {[%clk 0:01:18]} 34. Ra7+ {[%clk 0:01:29]}  Kg6 {[%clk 0:01:19]} 35. Kg1 {[%clk 0:01:29]}  Rxh4 {[%clk 0:01:18]} 36. Ra3 {[%clk 0:01:30]}  Rg4+ {[%clk 0:01:18]} 37. Kf1 {[%clk 0:01:30]}  Rg2 {[%clk 0:01:17]} 38. h3 {[%clk 0:01:31]}  h5 {[%clk 0:01:17]} 39. Re3 {[%clk 0:01:29]}  h4 {[%clk 0:01:16]} 40. Rxe4 {[%clk 0:01:29]}  Nxe4 {[%clk 0:01:17]} 41. Kxg2 {[%clk 0:01:30]}  Kf5 {[%clk 0:01:18]} 42. Kf3 {[%clk 0:01:31]}  Nf6 {[%clk 0:01:17]} 43. Kg2 {[%clk 0:01:32]}  Kf4 {[%clk 0:01:17]} 44. Kf2 {[%clk 0:01:32]}  Ne4+ {[%clk 0:01:17]} 45. Kg2 {[%clk 0:01:33]}  Ke3 {[%clk 0:01:18]} 46. Kh2 {[%clk 0:01:34]}  Kf2 {[%clk 0:01:18]} 47. Kh1 {[%clk 0:01:34]}  Kg3 {[%clk 0:01:18]} 48. Kg1 {[%clk 0:01:35]}  g5 {[%clk 0:01:16]} 49. Kh1 {[%clk 0:01:36]}  Kxh3 {[%clk 0:01:16]} 50. Kg1 {[%clk 0:01:36]}  Kg3 {[%clk 0:01:17]} 51. Kh1 {[%clk 0:01:37]}  h3 {[%clk 0:01:17]} 52. Kg1 {[%clk 0:01:38]}  h2+ {[%clk 0:01:17]} 53. Kh1 {[%clk 0:01:39]}  Nf2# {[%clk 0:01:16]} 0-1


[Site "https://www.chess.com"]

[Event "Titled Tuesday Blitz August 08 Early 2023"]
[White "Janaszak, Dawid"]
[Black "Skliarov, Viktor"]
[WhiteFideId "1119206"]
[BlackFideId "14106736"]
[WhiteElo "2554"]
[BlackElo "2698"]
[Result "1/2-1/2"]
[Round "11"]
[TimeControl "180+1"]
[Date "2023.08.08"]
[WhiteClock "0:00:06"]
[BlackClock "0:00:10"]
[Board "50"]

1. e4 {[%clk 0:03:00]}  c5 {[%clk 0:02:59]} 2. Nc3 {[%clk 0:03:00]}  Nc6 {[%clk 0:02:59]} 3. Bb5 {[%clk 0:02:59]}  Nd4 {[%clk 0:02:59]} 4. Nf3 {[%clk 0:03:00]}  g6 {[%clk 0:02:59]} 5. O-O {[%clk 0:02:58]}  Bg7 {[%clk 0:02:59]} 6. Re1 {[%clk 0:02:55]}  Nxb5 {[%clk 0:02:58]} 7. Nxb5 {[%clk 0:02:55]}  a6 {[%clk 0:02:58]} 8. Nc3 {[%clk 0:02:55]}  d6 {[%clk 0:02:59]} 9. d4 {[%clk 0:02:47]}  cxd4 {[%clk 0:02:58]} 10. Nxd4 {[%clk 0:02:47]}  Nf6 {[%clk 0:02:58]} 11. Bg5 {[%clk 0:02:41]}  O-O {[%clk 0:02:54]} 12. Qd2 {[%clk 0:02:41]}  Re8 {[%clk 0:02:31]} 13. Rad1 {[%clk 0:02:27]}  Bg4 {[%clk 0:02:23]} 14. f3 {[%clk 0:02:25]}  Bd7 {[%clk 0:02:23]} 15. Kh1 {[%clk 0:02:12]}  Rc8 {[%clk 0:02:17]} 16. Bh6 {[%clk 0:01:56]}  Bh8 {[%clk 0:02:16]} 17. Nde2 {[%clk 0:01:42]}  b5 {[%clk 0:02:03]} 18. Nf4 {[%clk 0:01:35]}  Bc6 {[%clk 0:01:56]} 19. Ncd5 {[%clk 0:01:26]}  Bxd5 {[%clk 0:01:45]} 20. exd5 {[%clk 0:01:23]}  Qc7 {[%clk 0:01:42]} 21. c3 {[%clk 0:01:20]}  a5 {[%clk 0:01:36]} 22. Rc1 {[%clk 0:01:00]}  Qc4 {[%clk 0:01:16]} 23. b3 {[%clk 0:00:50]}  Qc5 {[%clk 0:01:16]} 24. c4 {[%clk 0:00:49]}  b4 {[%clk 0:01:03]} 25. Nd3 {[%clk 0:00:48]}  Qc7 {[%clk 0:00:57]} 26. Bg5 {[%clk 0:00:47]}  Qd7 {[%clk 0:00:55]} 27. Re2 {[%clk 0:00:41]}  Bg7 {[%clk 0:00:53]} 28. Rce1 {[%clk 0:00:39]}  Rc7 {[%clk 0:00:51]} 29. Nf2 {[%clk 0:00:32]}  Qf5 {[%clk 0:00:49]} 30. Qf4 {[%clk 0:00:30]}  Qxf4 {[%clk 0:00:48]} 31. Bxf4 {[%clk 0:00:30]}  Kf8 {[%clk 0:00:48]} 32. Nd3 {[%clk 0:00:27]}  Rcc8 {[%clk 0:00:44]} 33. Kg1 {[%clk 0:00:27]}  Nd7 {[%clk 0:00:44]} 34. Bg5 {[%clk 0:00:25]}  Bd4+ {[%clk 0:00:39]} 35. Kf1 {[%clk 0:00:25]}  f6 {[%clk 0:00:39]} 36. Be3 {[%clk 0:00:24]}  Bc3 {[%clk 0:00:37]} 37. Bd2 {[%clk 0:00:23]}  Bxd2 {[%clk 0:00:34]} 38. Rxd2 {[%clk 0:00:24]}  g5 {[%clk 0:00:35]} 39. Rde2 {[%clk 0:00:23]}  Nc5 {[%clk 0:00:34]} 40. Nxc5 {[%clk 0:00:19]}  Rxc5 {[%clk 0:00:34]} 41. Kf2 {[%clk 0:00:19]}  Rc7 {[%clk 0:00:31]} 42. Ke3 {[%clk 0:00:18]}  Ra8 {[%clk 0:00:32]} 43. Kd4 {[%clk 0:00:17]}  a4 {[%clk 0:00:32]} 44. Rb1 {[%clk 0:00:16]}  axb3 {[%clk 0:00:31]} 45. Rxb3 {[%clk 0:00:17]}  Ra4 {[%clk 0:00:30]} 46. Reb2 {[%clk 0:00:17]}  Rca7 {[%clk 0:00:30]} 47. Rxb4 {[%clk 0:00:16]}  Rxb4 {[%clk 0:00:30]} 48. Rxb4 {[%clk 0:00:17]}  Rxa2 {[%clk 0:00:30]} 49. g4 {[%clk 0:00:10]}  Rxh2 {[%clk 0:00:29]} 50. Ke4 {[%clk 0:00:08]}  Re2+ {[%clk 0:00:28]} 51. Kd4 {[%clk 0:00:08]}  Kf7 {[%clk 0:00:26]} 52. Rb8 {[%clk 0:00:07]}  Rh2 {[%clk 0:00:25]} 53. Ke3 {[%clk 0:00:07]}  h5 {[%clk 0:00:25]} 54. gxh5 {[%clk 0:00:05]}  Rxh5 {[%clk 0:00:25]} 55. Rc8 {[%clk 0:00:06]}  Rh4 {[%clk 0:00:21]} 56. c5 {[%clk 0:00:04]}  dxc5 {[%clk 0:00:21]} 57. Rxc5 {[%clk 0:00:05]}  Ra4 {[%clk 0:00:20]} 58. Rc7 {[%clk 0:00:04]}  Ke8 {[%clk 0:00:20]} 59. Rb7 {[%clk 0:00:02]}  Kd8 {[%clk 0:00:20]} 60. Kd3 {[%clk 0:00:02]}  f5 {[%clk 0:00:18]} 61. Ke3 {[%clk 0:00:02]}  Ra3+ {[%clk 0:00:17]} 62. Ke2 {[%clk 0:00:02]}  Ra5 {[%clk 0:00:12]} 63. Rb8+ {[%clk 0:00:02]}  Kd7 {[%clk 0:00:12]} 64. Rg8 {[%clk 0:00:03]}  Rxd5 {[%clk 0:00:09]} 65. Rxg5 {[%clk 0:00:03]}  Ke6 {[%clk 0:00:10]} 66. f4 {[%clk 0:00:04]}  Ra5 {[%clk 0:00:08]} 67. Ke3 {[%clk 0:00:05]}  Ra3+ {[%clk 0:00:07]} 68. Ke2 {[%clk 0:00:05]}  Ra4 {[%clk 0:00:07]} 69. Ke3 {[%clk 0:00:05]}  Kf6 {[%clk 0:00:08]} 70. Rh5 {[%clk 0:00:05]}  e5 {[%clk 0:00:07]} 71. fxe5+ {[%clk 0:00:04]}  Kxe5 {[%clk 0:00:08]} 72. Rh8 {[%clk 0:00:04]}  Ra3+ {[%clk 0:00:08]} 73. Ke2 {[%clk 0:00:05]}  Ke4 {[%clk 0:00:08]} 74. Re8+ {[%clk 0:00:04]}  Kf4 {[%clk 0:00:08]} 75. Rb8 {[%clk 0:00:05]}  Ra2+ {[%clk 0:00:08]} 76. Kf1 {[%clk 0:00:05]}  Kg3 {[%clk 0:00:08]} 77. Rb3+ {[%clk 0:00:05]}  Kg4 {[%clk 0:00:09]} 78. Rb4+ {[%clk 0:00:05]}  f4 {[%clk 0:00:08]} 79. Rb3 {[%clk 0:00:05]}  f3 {[%clk 0:00:07]} 80. Rb8 {[%clk 0:00:05]}  Kg3 {[%clk 0:00:07]} 81. Rg8+ {[%clk 0:00:05]}  Kf4 {[%clk 0:00:08]} 82. Rf8+ {[%clk 0:00:05]}  Kg3 {[%clk 0:00:09]} 83. Rg8+ {[%clk 0:00:05]}  Kf4 {[%clk 0:00:09]} 84. Rf8+ {[%clk 0:00:06]}  Kg3 {[%clk 0:00:10]} 85. Rg8+ {[%clk 0:00:06]} 1/2-1/2


[Site "https://www.chess.com"]

[Event "Titled Tuesday Blitz August 08 Early 2023"]
[White "ATM622"]
[Black "Hua, Lefong"]
[BlackFideId "2602253"]
[WhiteElo "2524"]
[BlackElo "2654"]
[Result "1/2-1/2"]
[Round "11"]
[TimeControl "180+1"]
[Date "2023.08.08"]
[WhiteClock "0:00:16"]
[BlackClock "0:00:23"]
[Board "55"]

1. d4 {[%clk 0:03:00]}  Nf6 {[%clk 0:03:00]} 2. c4 {[%clk 0:02:59]}  g6 {[%clk 0:02:59]} 3. g3 {[%clk 0:02:59]}  Bg7 {[%clk 0:02:59]} 4. Bg2 {[%clk 0:02:58]}  O-O {[%clk 0:03:00]} 5. Nf3 {[%clk 0:02:58]}  d6 {[%clk 0:03:00]} 6. O-O {[%clk 0:02:58]}  Nc6 {[%clk 0:03:01]} 7. Nc3 {[%clk 0:02:58]}  a6 {[%clk 0:03:02]} 8. d5 {[%clk 0:02:57]}  Na5 {[%clk 0:03:02]} 9. Nd2 {[%clk 0:02:56]}  c5 {[%clk 0:03:02]} 10. e4 {[%clk 0:02:55]}  Rb8 {[%clk 0:02:58]} 11. a4 {[%clk 0:02:55]}  e6 {[%clk 0:02:59]} 12. Re1 {[%clk 0:02:52]}  exd5 {[%clk 0:02:59]} 13. exd5 {[%clk 0:02:52]}  Bg4 {[%clk 0:02:45]} 14. Qc2 {[%clk 0:02:50]}  Bf5 {[%clk 0:02:44]} 15. Qd1 {[%clk 0:02:49]}  Re8 {[%clk 0:02:40]} 16. Rxe8+ {[%clk 0:02:37]}  Qxe8 {[%clk 0:02:40]} 17. Qe2 {[%clk 0:02:28]}  Qxe2 {[%clk 0:02:36]} 18. Nxe2 {[%clk 0:02:29]}  Bd3 {[%clk 0:02:32]} 19. Nf4 {[%clk 0:02:26]}  Bxc4 {[%clk 0:02:29]} 20. Nxc4 {[%clk 0:02:23]}  Nxc4 {[%clk 0:02:30]} 21. a5 {[%clk 0:02:19]}  Ne8 {[%clk 0:02:11]} 22. Ra2 {[%clk 0:02:11]}  b5 {[%clk 0:02:11]} 23. axb6 {[%clk 0:02:07]}  Rxb6 {[%clk 0:02:11]} 24. Bf1 {[%clk 0:02:06]}  Nxb2 {[%clk 0:02:07]} 25. Rxa6 {[%clk 0:02:02]}  Rxa6 {[%clk 0:02:01]} 26. Bxa6 {[%clk 0:02:03]}  Nc7 {[%clk 0:01:56]} 27. Be2 {[%clk 0:02:00]}  Na4 {[%clk 0:01:46]} 28. Bd1 {[%clk 0:01:46]}  Nb6 {[%clk 0:01:42]} 29. Bf3 {[%clk 0:01:46]}  Be5 {[%clk 0:01:33]} 30. Kf1 {[%clk 0:01:40]}  Kf8 {[%clk 0:01:33]} 31. Ke2 {[%clk 0:01:38]}  Ke7 {[%clk 0:01:33]} 32. Nd3 {[%clk 0:01:35]}  Ncxd5 {[%clk 0:01:30]} 33. Nxe5 {[%clk 0:01:33]}  dxe5 {[%clk 0:01:30]} 34. h4 {[%clk 0:01:30]}  f5 {[%clk 0:01:29]} 35. h5 {[%clk 0:01:28]}  Kd6 {[%clk 0:01:25]} 36. g4 {[%clk 0:01:24]}  Nf6 {[%clk 0:01:18]} 37. hxg6 {[%clk 0:01:21]}  hxg6 {[%clk 0:01:18]} 38. gxf5 {[%clk 0:01:16]}  gxf5 {[%clk 0:01:19]} 39. Bh6 {[%clk 0:01:14]}  c4 {[%clk 0:01:09]} 40. Bf8+ {[%clk 0:01:12]}  Ke6 {[%clk 0:01:10]} 41. Kd2 {[%clk 0:01:07]}  Nfd5 {[%clk 0:01:09]} 42. Bd1 {[%clk 0:01:03]}  e4 {[%clk 0:01:06]} 43. Bg7 {[%clk 0:01:01]}  f4 {[%clk 0:01:04]} 44. Bc2 {[%clk 0:00:58]}  e3+ {[%clk 0:00:53]} 45. fxe3 {[%clk 0:00:57]}  Nxe3 {[%clk 0:00:51]} 46. Be4 {[%clk 0:00:54]}  Ned5 {[%clk 0:00:48]} 47. Bd4 {[%clk 0:00:49]}  Nd7 {[%clk 0:00:45]} 48. Bf3 {[%clk 0:00:47]}  Ne5 {[%clk 0:00:45]} 49. Be2 {[%clk 0:00:46]}  f3 {[%clk 0:00:33]} 50. Bxe5 {[%clk 0:00:43]}  fxe2 {[%clk 0:00:32]} 51. Bg3 {[%clk 0:00:40]}  Kf5 {[%clk 0:00:22]} 52. Kxe2 {[%clk 0:00:38]}  Ke4 {[%clk 0:00:23]} 53. Be1 {[%clk 0:00:36]}  Kd4 {[%clk 0:00:23]} 54. Kd2 {[%clk 0:00:34]}  Nb4 {[%clk 0:00:18]} 55. Bf2+ {[%clk 0:00:33]}  Kd5 {[%clk 0:00:19]} 56. Kc3 {[%clk 0:00:31]}  Nd3 {[%clk 0:00:19]} 57. Be3 {[%clk 0:00:31]}  Ne5 {[%clk 0:00:19]} 58. Ba7 {[%clk 0:00:30]}  Nd7 {[%clk 0:00:19]} 59. Bg1 {[%clk 0:00:30]}  Nf6 {[%clk 0:00:19]} 60. Ba7 {[%clk 0:00:28]}  Ne4+ {[%clk 0:00:20]} 61. Kc2 {[%clk 0:00:28]}  Kc6 {[%clk 0:00:21]} 62. Bg1 {[%clk 0:00:27]}  Kb5 {[%clk 0:00:21]} 63. Ba7 {[%clk 0:00:27]}  Kb4 {[%clk 0:00:22]} 64. Bd4 {[%clk 0:00:27]}  Nd6 {[%clk 0:00:21]} 65. Bc3+ {[%clk 0:00:26]}  Kb5 {[%clk 0:00:22]} 66. Bh8 {[%clk 0:00:26]}  Kc6 {[%clk 0:00:22]} 67. Be5 {[%clk 0:00:25]}  Nb5 {[%clk 0:00:21]} 68. Bh8 {[%clk 0:00:25]}  Kd5 {[%clk 0:00:22]} 69. Bg7 {[%clk 0:00:25]}  Na3+ {[%clk 0:00:22]} 70. Kc3 {[%clk 0:00:22]}  Nb5+ {[%clk 0:00:21]} 71. Kc2 {[%clk 0:00:23]}  Nc7 {[%clk 0:00:21]} 72. Bh8 {[%clk 0:00:22]}  Ne6 {[%clk 0:00:22]} 73. Bf6 {[%clk 0:00:22]}  Nc5 {[%clk 0:00:22]} 74. Bh8 {[%clk 0:00:22]}  Nd3 {[%clk 0:00:21]} 75. Bg7 {[%clk 0:00:19]}  Ne1+ {[%clk 0:00:22]} 76. Kc3 {[%clk 0:00:18]}  Ng2 {[%clk 0:00:23]} 77. Bh8 {[%clk 0:00:18]}  Ne3 {[%clk 0:00:22]} 78. Bg7 {[%clk 0:00:18]}  Nf5 {[%clk 0:00:22]} 79. Bh8 {[%clk 0:00:17]}  Nd6 {[%clk 0:00:22]} 80. Bg7 {[%clk 0:00:16]}  Nb5+ {[%clk 0:00:23]} 81. Kc2 {[%clk 0:00:16]} 1/2-1/2


[Site "https://www.chess.com"]

[Event "Titled Tuesday Blitz August 08 Early 2023"]
[White "arenal72"]
[Black "Piesik, Piotr"]
[BlackFideId "1136194"]
[WhiteElo "2508"]
[BlackElo "2647"]
[Result "0-1"]
[Round "11"]
[TimeControl "180+1"]
[Date "2023.08.08"]
[WhiteClock "0:01:14"]
[BlackClock "0:01:33"]
[Board "57"]

1. e4 {[%clk 0:03:00]}  g6 {[%clk 0:03:00]} 2. d4 {[%clk 0:02:59]}  Bg7 {[%clk 0:02:59]} 3. h4 {[%clk 0:02:58]}  h5 {[%clk 0:02:58]} 4. Nf3 {[%clk 0:02:57]}  c6 {[%clk 0:02:58]} 5. Nc3 {[%clk 0:02:53]}  d5 {[%clk 0:02:58]} 6. Bf4 {[%clk 0:02:50]}  dxe4 {[%clk 0:02:55]} 7. Nxe4 {[%clk 0:02:51]}  Nf6 {[%clk 0:02:55]} 8. Nxf6+ {[%clk 0:02:46]}  Bxf6 {[%clk 0:02:56]} 9. Qd2 {[%clk 0:02:43]}  Bf5 {[%clk 0:02:52]} 10. O-O-O {[%clk 0:02:39]}  Nd7 {[%clk 0:02:49]} 11. Bd3 {[%clk 0:02:37]}  Bxd3 {[%clk 0:02:49]} 12. Qxd3 {[%clk 0:02:36]}  Nb6 {[%clk 0:02:47]} 13. Rhe1 {[%clk 0:02:32]}  Qd5 {[%clk 0:02:43]} 14. Kb1 {[%clk 0:02:29]}  O-O {[%clk 0:02:36]} 15. Be5 {[%clk 0:02:26]}  Rad8 {[%clk 0:02:33]} 16. Bxf6 {[%clk 0:02:18]}  exf6 {[%clk 0:02:33]} 17. b3 {[%clk 0:02:18]}  Rfe8 {[%clk 0:02:25]} 18. Re3 {[%clk 0:02:16]}  Qd7 {[%clk 0:02:15]} 19. Rde1 {[%clk 0:02:13]}  Nd5 {[%clk 0:02:15]} 20. Rxe8+ {[%clk 0:02:11]}  Rxe8 {[%clk 0:02:16]} 21. Rxe8+ {[%clk 0:02:06]}  Qxe8 {[%clk 0:02:17]} 22. g3 {[%clk 0:02:04]}  b5 {[%clk 0:02:14]} 23. Kb2 {[%clk 0:02:01]}  b4 {[%clk 0:02:10]} 24. a3 {[%clk 0:01:56]}  a5 {[%clk 0:02:10]} 25. Qc4 {[%clk 0:01:49]}  Qe4 {[%clk 0:02:02]} 26. Nd2 {[%clk 0:01:47]}  Qe1 {[%clk 0:02:00]} 27. Qxc6 {[%clk 0:01:44]}  Nc3 {[%clk 0:01:59]} 28. axb4 {[%clk 0:01:35]}  axb4 {[%clk 0:01:55]} 29. Qxf6 {[%clk 0:01:31]}  Qxd2 {[%clk 0:01:51]} 30. Qd8+ {[%clk 0:01:31]}  Kg7 {[%clk 0:01:50]} 31. Qd6 {[%clk 0:01:30]}  Ne2 {[%clk 0:01:36]} 32. Qe5+ {[%clk 0:01:25]}  Kh7 {[%clk 0:01:36]} 33. d5 {[%clk 0:01:14]}  Qc1+ {[%clk 0:01:33]} 0-1


[Site "https://www.chess.com"]

[Event "Titled Tuesday Blitz August 08 Early 2023"]
[White "Weishaeutel, Moritz"]
[Black "Iljin, Timofey"]
[WhiteFideId "12967300"]
[BlackFideId "14110180"]
[WhiteElo "2647"]
[BlackElo "2507"]
[Result "1-0"]
[Round "11"]
[TimeControl "180+1"]
[Date "2023.08.08"]
[WhiteClock "0:00:14"]
[BlackClock "0:00:01"]
[Board "58"]

1. e4 {[%clk 0:03:00]}  d5 {[%clk 0:02:59]} 2. exd5 {[%clk 0:03:00]}  Nf6 {[%clk 0:02:59]} 3. Nf3 {[%clk 0:03:00]}  Bg4 {[%clk 0:02:59]} 4. Bb5+ {[%clk 0:02:57]}  Nbd7 {[%clk 0:02:59]} 5. c4 {[%clk 0:02:53]}  a6 {[%clk 0:02:59]} 6. Ba4 {[%clk 0:02:53]}  b5 {[%clk 0:02:59]} 7. cxb5 {[%clk 0:02:54]}  Nxd5 {[%clk 0:02:59]} 8. bxa6 {[%clk 0:02:50]}  e6 {[%clk 0:02:57]} 9. h3 {[%clk 0:02:39]}  Bxf3 {[%clk 0:02:56]} 10. Qxf3 {[%clk 0:02:40]}  Rxa6 {[%clk 0:02:56]} 11. Bb3 {[%clk 0:02:41]}  Ne5 {[%clk 0:02:29]} 12. Qe2 {[%clk 0:02:40]}  Nb4 {[%clk 0:02:29]} 13. O-O {[%clk 0:02:27]}  Nbd3 {[%clk 0:02:21]} 14. Nc3 {[%clk 0:02:26]}  Bc5 {[%clk 0:02:07]} 15. Bc2 {[%clk 0:01:58]}  O-O {[%clk 0:01:56]} 16. Qe4 {[%clk 0:01:37]}  f5 {[%clk 0:01:49]} 17. Qe2 {[%clk 0:01:34]}  Rd6 {[%clk 0:01:39]} 18. Kh1 {[%clk 0:01:19]}  Qh4 {[%clk 0:00:51]} 19. f4 {[%clk 0:00:48]}  Nxc1 {[%clk 0:00:13]} 20. Raxc1 {[%clk 0:00:45]}  Ng4 {[%clk 0:00:12]} 21. Ne4 {[%clk 0:00:23]}  fxe4 {[%clk 0:00:12]} 22. Qxg4 {[%clk 0:00:23]}  Qxg4 {[%clk 0:00:12]} 23. hxg4 {[%clk 0:00:24]}  Rxd2 {[%clk 0:00:13]} 24. Bxe4 {[%clk 0:00:23]}  Rxb2 {[%clk 0:00:13]} 25. Rxc5 {[%clk 0:00:23]}  Rxa2 {[%clk 0:00:12]} 26. Rxc7 {[%clk 0:00:21]}  Ra4 {[%clk 0:00:12]} 27. Bf3 {[%clk 0:00:18]}  Raxf4 {[%clk 0:00:13]} 28. Re1 {[%clk 0:00:18]}  R4f6 {[%clk 0:00:12]} 29. Re7 {[%clk 0:00:17]}  h6 {[%clk 0:00:03]} 30. R7xe6 {[%clk 0:00:17]}  Rxe6 {[%clk 0:00:03]} 31. Rxe6 {[%clk 0:00:18]}  Rb8 {[%clk 0:00:04]} 32. Re7 {[%clk 0:00:17]}  Rb1+ {[%clk 0:00:04]} 33. Kh2 {[%clk 0:00:18]}  Rb5 {[%clk 0:00:04]} 34. Rb7 {[%clk 0:00:17]}  Rc5 {[%clk 0:00:04]} 35. Kg3 {[%clk 0:00:17]}  Rc3 {[%clk 0:00:04]} 36. Kf4 {[%clk 0:00:17]}  Kf8 {[%clk 0:00:04]} 37. Ke5 {[%clk 0:00:17]}  Rc5+ {[%clk 0:00:04]} 38. Bd5 {[%clk 0:00:17]}  g5 {[%clk 0:00:03]} 39. Rf7+ {[%clk 0:00:16]}  Ke8 {[%clk 0:00:03]} 40. Rf6 {[%clk 0:00:16]}  Rc2 {[%clk 0:00:03]} 41. Rxh6 {[%clk 0:00:16]}  Ke7 {[%clk 0:00:03]} 42. Rh7+ {[%clk 0:00:16]}  Kf8 {[%clk 0:00:03]} 43. Rf7+ {[%clk 0:00:16]}  Ke8 {[%clk 0:00:03]} 44. Rg7 {[%clk 0:00:16]}  Re2+ {[%clk 0:00:03]} 45. Be4 {[%clk 0:00:16]}  Kf8 {[%clk 0:00:03]} 46. Rxg5 {[%clk 0:00:17]}  Kf7 {[%clk 0:00:04]} 47. Rf5+ {[%clk 0:00:17]}  Kg6 {[%clk 0:00:05]} 48. Rf2+ {[%clk 0:00:17]}  Kg5 {[%clk 0:00:06]} 49. Rxe2 {[%clk 0:00:17]}  Kh4 {[%clk 0:00:07]} 50. Bf3 {[%clk 0:00:17]}  Kg3 {[%clk 0:00:02]} 51. g5 {[%clk 0:00:16]}  Kh4 {[%clk 0:00:03]} 52. g6 {[%clk 0:00:16]}  Kg3 {[%clk 0:00:03]} 53. g7 {[%clk 0:00:16]}  Kh4 {[%clk 0:00:04]} 54. Rd2 {[%clk 0:00:16]}  Kg3 {[%clk 0:00:05]} 55. g8=Q+ {[%clk 0:00:16]}  Kh2 {[%clk 0:00:06]} 56. g4+ {[%clk 0:00:15]}  Kg1 {[%clk 0:00:07]} 57. Qb8 {[%clk 0:00:13]}  Kf1 {[%clk 0:00:01]} 58. Qb1# {[%clk 0:00:14]} 1-0


[Site "https://www.chess.com"]